bitfinex/quotes_BTCUSD_20230106
["timestamp","ask_amount","ask_price","bid_price","bid_amount"]
[1673031874029,0.54414376,16870.0,16869.0,0.9190255]
[1673031876566,0.54414376,16870.0,16869.0,0.67787849]
[1673031877817,0.54414376,16870.0,16869.0,1.16085347]
[1673031878080,0.54414376,16870.0,16869.0,0.67787849]
[1673031879096,0.54414376,16870.0,16869.0,1.75365647]
[1673031881638,0.01011823,16870.0,16869.0,1.75365647]
[1673031881883,0.54414376,16870.0,16869.0,2.06057848]
[1673031882640,0.01011823,16870.0,16869.0,2.06057848]
[1673031882892,0.54414376,16870.0,16869.0,2.06057848]
[1673031883140,0.01011823,16870.0,16869.0,2.06057848]
[1673031884616,0.54414376,16870.0,16869.0,2.06057848]
[1673031884863,0.54414376,16870.0,16869.0,1.5776035]
[1673031885331,0.54414376,16870.0,16869.0,1.27068149]
[1673031887179,0.54414376,16870.0,16869.0,0.67787849]
[1673031894804,0.54414376,16870.0,16869.0,0.67777304]
[1673031901559,0.53402553,16870.0,16869.0,0.67777304]
[1673031901821,0.60902888,16871.0,16869.0,0.67777304]
[1673031902065,0.60902888,16871.0,16869.0,0.86463913]
[1673031902342,0.53393887,16870.0,16869.0,0.86463913]
[1673031902602,0.53393908,16870.0,16869.0,0.86463913]
[1673031902824,0.60902888,16871.0,16869.0,0.86463913]
[1673031903081,0.60902888,16871.0,16869.0,0.81811366]
[1673031903341,0.63002888,16871.0,16869.0,0.81811366]
[1673031903588,0.0085,16870.0,16869.0,0.81811366]
[1673031903845,0.0115,16870.0,16869.0,0.86711366]
[1673031904090,0.0085,16870.0,16869.0,0.81811366]
[1673031904568,0.0085,16870.0,16869.0,0.61877879]
[1673031904790,0.0115,16870.0,16869.0,0.66777879]
[1673031905238,0.0115,16870.0,16869.0,0.07497579]
[1673031905802,0.0085,16870.0,16869.0,0.02597579]
[1673031906039,0.0295,16870.0,16869.0,0.02597579]
[1673031906788,0.17354,16870.0,16869.0,0.02597579]
[1673031907042,0.17654,16870.0,16869.0,0.07497579]
[1673031907297,0.15254,16870.0,16869.0,0.02597579]
[1673031907567,0.17354,16870.0,16869.0,0.02597579]
[1673031908281,0.0295,16870.0,16869.0,0.02597579]
[1673031909898,0.0295,16870.0,16869.0,0.21941303]
[1673031910367,0.56341641,16870.0,16869.0,0.21941303]
[1673031910625,0.56341641,16870.0,16869.0,0.81221603]
[1673031911393,0.56341641,16870.0,16869.0,0.61877879]
[1673031912197,0.5620982,16870.0,16869.0,0.02597579]
[1673031915216,1.16256625,16870.0,16869.0,0.02597579]
[1673031917467,0.5620982,16870.0,16869.0,0.02597579]
[1673031923004,0.5410982,16870.0,16869.0,0.02597579]
[1673031923259,0.5620982,16870.0,16869.0,0.02597579]
[1673031924270,0.5620982,16870.0,16869.0,0.21941313]
[1673031925904,0.5410982,16870.0,16869.0,0.21941313]
[1673031926372,0.5620982,16870.0,16869.0,0.02597579]
[1673031928455,1.16256625,16870.0,16869.0,0.02597579]
[1673031929195,0.5620982,16870.0,16869.0,0.02597579]
[1673031929418,1.16256625,16870.0,16869.0,0.02597579]
[1673031930189,1.15538446,16870.0,16869.0,0.02597579]
[1673031931467,1.15538446,16870.0,16869.0,0.22108121]
[1673031932014,0.55491641,16870.0,16869.0,0.22108121]
[1673031932246,0.55491641,16870.0,16869.0,0.02597579]
[1673031932488,1.15538446,16870.0,16869.0,0.02597579]
[1673031933014,1.17331446,16870.0,16869.0,0.02597579]
[1673031933293,1.17331446,16870.0,16869.0,0.02586707]
[1673031935627,1.15538446,16870.0,16869.0,0.02586707]
[1673031935885,1.45177446,16870.0,16869.0,0.02586707]
[1673031938009,1.15538446,16870.0,16869.0,0.02586707]
[1673031938291,1.45177446,16870.0,16869.0,0.02586707]
[1673031942011,3.45257441,16870.0,16869.0,0.02586707]
[1673031942262,4.04528134,16870.0,16869.0,0.02586707]
[1673031943038,4.64593239,16870.0,16869.0,0.02586707]
[1673031943544,4.04528134,16870.0,16869.0,0.02586707]
[1673031945885,4.04528134,16870.0,16867.0,0.48297498]
[1673031946131,0.60904191,16869.0,16866.0,2.76625947]
[1673031946384,1.4395268,16869.0,16866.0,2.76576601]
[1673031946640,1.4395268,16869.0,16867.0,0.4]
[1673031946894,1.20215013,16869.0,16867.0,0.4]
[1673031947145,1.20215013,16869.0,16867.0,0.42959126]
[1673031947679,1.20715013,16869.0,16867.0,0.42959126]
[1673031947910,1.20215013,16869.0,16867.0,0.02959126]
[1673031948155,0.53376183,16868.0,16867.0,0.07859126]
[1673031949681,0.53376183,16868.0,16867.0,0.15159126]
[1673031949996,0.53876183,16868.0,16867.0,0.15159126]
[1673031952269,0.83519183,16868.0,16867.0,0.15159126]
[1673031955186,0.53876183,16868.0,16867.0,0.15159126]
[1673031958729,0.53906305,16868.0,16867.0,0.15159126]
[1673031960286,0.53876183,16868.0,16867.0,0.15159126]
[1673031961583,0.53906305,16868.0,16867.0,0.15159126]
[1673031961834,0.53876183,16868.0,16867.0,0.15159126]
[1673031962101,0.51926183,16868.0,16867.0,0.15159126]
[1673031962613,0.51956305,16868.0,16867.0,0.15159126]
[1673031963644,0.51926183,16868.0,16867.0,0.15159126]
[1673031963882,0.51926183,16868.0,16867.0,0.34385113]
[1673031965161,0.51926183,16868.0,16867.0,0.15159126]
[1673031965615,0.51956305,16868.0,16867.0,0.15159126]
[1673031965868,0.51926183,16868.0,16867.0,0.15159126]
[1673031966876,0.51956305,16868.0,16867.0,0.15159126]
[1673031967130,0.51926183,16868.0,16867.0,0.15159126]
[1673031967941,0.51956305,16868.0,16867.0,0.15159126]
[1673031969662,0.51926183,16868.0,16867.0,0.15159126]
[1673031969914,0.51956305,16868.0,16867.0,0.15159126]
[1673031970163,0.50926183,16868.0,16867.0,0.15159126]
[1673031970683,0.50926183,16868.0,16867.0,0.39484253]
[1673031971697,0.005,16868.0,16867.0,0.15159126]
[1673031971958,0.26473122,16868.0,16867.0,0.15159126]
[1673031972186,0.13475616,16868.0,16867.0,0.15159126]
[1673031973448,1.33663607,16868.0,16867.0,0.15159126]
[1673031973710,0.73609416,16868.0,16867.0,0.15159126]
[1673031974237,1.73665857,16868.0,16867.0,0.15159126]
[1673031974489,2.32949657,16868.0,16867.0,0.15159126]
[1673031976015,1.72893216,16868.0,16867.0,0.15159126]
[1673031976557,3.09804752,16868.0,16867.0,0.15159126]
[1673031976807,2.49777016,16868.0,16867.0,0.15159126]
[1673031977566,2.49411522,16868.0,16867.0,0.02959126]
[1673031977826,2.55911522,16868.0,16867.0,0.03959126]
[1673031978071,2.49411522,16868.0,16867.0,0.02959126]
[1673031978327,2.55911522,16868.0,16867.0,0.03959126]
[1673031978598,3.15925855,16868.0,16867.0,0.03959126]
[1673031980074,2.75925855,16868.0,16867.0,0.03959126]
[1673031988346,2.15911522,16868.0,16867.0,0.03959126]
[1673031988509,2.75900895,16868.0,16867.0,0.03959126]
[1673031989565,2.15911522,16868.0,16867.0,0.03959126]
[1673031991117,2.75892571,16868.0,16867.0,0.03959126]
[1673031992127,2.75892571,16868.0,16867.0,0.03951508]
[1673031996691,3.05539571,16868.0,16867.0,0.03951508]
[1673031998999,2.75892571,16868.0,16867.0,0.03951508]
[1673031999512,3.05538571,16868.0,16867.0,0.03951508]
[1673032004515,2.45557522,16868.0,16867.0,0.03951508]
[1673032004989,3.0556279,16868.0,16867.0,0.03951508]
[1673032005258,2.45557522,16868.0,16867.0,0.03951508]
[1673032006031,2.76041574,16868.0,16867.0,0.03951508]
[1673032006542,2.45557522,16868.0,16867.0,0.03951508]
[1673032007049,2.45557522,16868.0,16867.0,0.01]
[1673032008079,2.45557522,16868.0,16867.0,0.03768601]
[1673032009367,2.27957522,16868.0,16867.0,0.03768601]
[1673032016291,2.27957522,16868.0,16867.0,0.03757737]
[1673032020380,2.65436613,16868.0,16867.0,0.03757737]
[1673032020598,2.27957522,16868.0,16867.0,0.03757737]
[1673032021352,2.27957522,16868.0,16867.0,0.03186137]
[1673032023889,2.27957522,16868.0,16867.0,0.00417536]
[1673032025653,2.27947629,16868.0,16867.0,0.00417536]
[1673032025897,2.27947629,16868.0,16867.0,0.03408205]
[1673032029664,2.27949629,16868.0,16867.0,0.03408205]
[1673032037216,2.57949629,16868.0,16867.0,0.03408205]
[1673032038408,2.27949629,16868.0,16867.0,0.03408205]
[1673032039722,2.57949629,16868.0,16867.0,0.03408205]
[1673032040409,2.27949629,16868.0,16867.0,0.03408205]
[1673032040686,3.15500014,16868.0,16867.0,0.03408205]
[1673032040914,2.57949629,16868.0,16867.0,0.03408205]
[1673032041166,3.85978315,16868.0,16867.0,0.03408205]
[1673032041418,3.45500014,16868.0,16867.0,0.03408205]
[1673032042193,3.15500014,16868.0,16867.0,0.03408205]
[1673032042445,2.27949629,16868.0,16867.0,0.03408205]
[1673032044215,2.57949629,16868.0,16867.0,0.03408205]
[1673032044458,2.27949629,16868.0,16867.0,0.03408205]
[1673032044702,2.57949629,16868.0,16867.0,0.03408205]
[1673032045715,2.57949629,16868.0,16867.0,0.03398253]
[1673032046225,2.27949629,16868.0,16867.0,0.03398253]
[1673032046722,2.57949629,16868.0,16867.0,0.03398253]
[1673032047236,2.27949629,16868.0,16867.0,0.03398253]
[1673032048747,2.57949629,16868.0,16867.0,0.03398253]
[1673032049008,3.45500014,16868.0,16867.0,0.03398253]
[1673032053108,3.15500014,16868.0,16867.0,0.03398253]
[1673032053365,2.57949629,16868.0,16867.0,0.03398253]
[1673032053891,3.45500014,16868.0,16867.0,0.03398253]
[1673032056136,3.45500014,16868.0,16867.0,0.00407584]
[1673032057184,3.45500014,16868.0,16867.0,0.03240849]
[1673032057430,2.27949629,16868.0,16867.0,0.03240849]
[1673032057940,2.27949629,16868.0,16867.0,0.00407584]
[1673032058252,3.54723315,16868.0,16867.0,0.00407584]
[1673032058464,4.02223315,16868.0,16867.0,0.00407584]
[1673032059212,4.02223315,16868.0,16867.0,0.03647285]
[1673032060000,4.02225315,16868.0,16867.0,0.03647285]
[1673032060755,3.72575315,16868.0,16867.0,0.03647285]
[1673032061000,4.02225315,16868.0,16867.0,0.00407584]
[1673032061266,3.72575315,16868.0,16867.0,0.00407584]
[1673032061508,4.02226315,16868.0,16867.0,0.00407584]
[1673032063057,4.02226315,16868.0,16867.0,0.03647374]
[1673032064078,4.02226315,16868.0,16867.0,0.00407584]
[1673032065079,3.63003014,16868.0,16867.0,0.03647374]
[1673032066071,3.33352014,16868.0,16867.0,0.00407584]
[1673032066378,3.63003014,16868.0,16867.0,0.00407584]
[1673032067144,3.63003014,16868.0,16867.0,0.03647374]
[1673032068130,3.63003014,16868.0,16867.0,0.00407584]
[1673032068916,3.69578137,16868.0,16867.0,0.00407584]
[1673032069427,3.52078137,16868.0,16867.0,0.00407584]
[1673032069726,3.52078137,16868.0,16867.0,0.00399402]
[1673032071935,3.45503014,16868.0,16867.0,0.00399402]
[1673032074002,3.45503014,16868.0,16867.0,0.03639192]
[1673032079260,3.15852014,16868.0,16867.0,0.03639192]
[1673032079522,3.45502014,16868.0,16867.0,0.03639192]
[1673032084329,3.15852014,16868.0,16867.0,0.03639192]
[1673032084585,3.45502014,16868.0,16867.0,0.03639192]
[1673032084835,3.85980515,16868.0,16867.0,0.03639192]
[1673032088308,2.9843013,16868.0,16867.0,0.03639192]
[1673032088804,2.5794247,16868.0,16867.0,0.03639192]
[1673032089299,3.45596614,16868.0,16867.0,0.03639192]
[1673032089550,3.45596582,16868.0,16867.0,0.03639192]
[1673032090346,3.15946582,16868.0,16867.0,0.03639192]
[1673032090615,3.45596582,16868.0,16867.0,0.03639192]
[1673032092156,3.45596582,16868.0,16867.0,0.00399402]
[1673032092669,3.8608454,16868.0,16867.0,0.00399402]
[1673032092934,3.8608454,16868.0,16867.0,0.03600226]
[1673032093231,3.45596582,16868.0,16867.0,0.03600226]
[1673032096824,2.5794247,16868.0,16867.0,0.03600226]
[1673032097324,2.5794247,16868.0,16867.0,0.00399402]
[1673032098112,2.5794247,16868.0,16867.0,0.03813614]
[1673032099104,2.2829247,16868.0,16867.0,0.00399402]
[1673032099367,2.61808017,16868.0,16867.0,0.00399402]
[1673032099622,2.3008547,16868.0,16867.0,0.00399402]
[1673032100130,2.3008547,16868.0,16867.0,0.03813614]
[1673032100425,3.17745131,16868.0,16867.0,0.03813614]
[1673032100650,2.3008547,16868.0,16867.0,0.03813614]
[1673032101407,2.57913348,16868.0,16867.0,0.03820082]
[1673032101663,3.45573459,16868.0,16867.0,0.03813614]
[1673032102181,3.45573459,16868.0,16867.0,0.00399402]
[1673032102448,3.45572459,16868.0,16867.0,0.00399402]
[1673032103977,3.45572459,16868.0,16867.0,0.03813614]
[1673032104933,3.45602581,16868.0,16867.0,0.00399402]
[1673032106188,3.15952581,16868.0,16867.0,0.00399402]
[1673032106436,3.45602581,16868.0,16867.0,0.00399402]
[1673032106938,3.45602581,16868.0,16867.0,0.03813614]
[1673032107981,3.15952581,16868.0,16867.0,0.03813614]
[1673032108227,3.45603581,16868.0,16867.0,0.00399402]
[1673032110265,3.45602581,16868.0,16867.0,0.00399402]
[1673032110740,3.45602581,16868.0,16867.0,0.00392006]
[1673032115021,3.45602581,16868.0,16867.0,0.0359283]
[1673032120071,3.45572459,16868.0,16867.0,0.0359283]
[1673032120847,3.44572459,16868.0,16867.0,0.0359283]
[1673032123839,3.14952581,16868.0,16867.0,0.0359283]
[1673032124094,3.44603581,16868.0,16867.0,0.0359283]
[1673032125112,3.14603581,16868.0,16867.0,0.0359283]
[1673032125369,3.44603581,16868.0,16867.0,0.0359283]
[1673032125677,3.14603581,16868.0,16867.0,0.0359283]
[1673032125864,3.44603581,16868.0,16867.0,0.0359283]
[1673032126112,3.14603581,16868.0,16867.0,0.0359283]
[1673032126616,3.44603581,16868.0,16867.0,0.0359283]
[1673032127083,3.44603581,16868.0,16867.0,0.00392006]
[1673032127586,3.14603581,16868.0,16867.0,0.00392006]
[1673032129082,3.14603581,16868.0,16867.0,0.03553864]
[1673032130078,3.14603581,16868.0,16867.0,0.00392006]
[1673032131119,3.44603581,16868.0,16867.0,0.00392006]
[1673032131379,2.5694347,16868.0,16867.0,0.00392006]
[1673032132879,3.44589197,16868.0,16867.0,0.00392006]
[1673032133388,3.44589127,16868.0,16867.0,0.00392006]
[1673032133636,2.56932371,16868.0,16867.0,0.00392006]
[1673032137114,3.44573859,16868.0,16867.0,0.00392006]
[1673032142427,3.14573859,16868.0,16867.0,0.00392006]
[1673032142676,3.44573859,16868.0,16867.0,0.00392006]
[1673032142924,3.44574859,16868.0,16867.0,0.00392006]
[1673032146160,3.44574859,16868.0,16867.0,0.03553864]
[1673032146409,2.56933371,16868.0,16867.0,0.03553864]
[1673032148986,3.44575263,16868.0,16867.0,0.03553864]
[1673032149981,3.44575177,16868.0,16867.0,0.00392006]
[1673032151158,3.44575177,16868.0,16867.0,0.03514897]
[1673032151855,3.44574177,16868.0,16867.0,0.03514897]
[1673032152106,3.44574177,16868.0,16867.0,0.00392006]
[1673032153034,3.44574177,16868.0,16867.0,0.03514897]
[1673032153927,3.44574177,16868.0,16867.0,0.00392006]
[1673032154717,3.44574177,16868.0,16867.0,0.00383156]
[1673032155005,3.44574177,16868.0,16867.0,0.0371424]
[1673032156164,3.44574177,16868.0,16867.0,0.00383156]
[1673032157226,3.44574177,16868.0,16867.0,0.0371424]
[1673032158242,3.44574177,16868.0,16867.0,0.00383156]
[1673032158991,3.44574177,16868.0,16867.0,0.0371424]
[1673032160080,3.44574177,16868.0,16867.0,0.00383156]
[1673032161126,3.44574177,16868.0,16867.0,0.03952174]
[1673032162153,3.44574177,16868.0,16867.0,0.00383156]
[1673032162688,3.14544055,16868.0,16867.0,0.00383156]
[1673032163225,3.14544055,16868.0,16867.0,0.03952174]
[1673032163480,2.26902249,16868.0,16867.0,0.03952174]
[1673032163886,3.14544055,16868.0,16867.0,0.03952174]
[1673032164106,3.14544055,16868.0,16867.0,0.00383156]
[1673032165222,3.14544055,16868.0,16867.0,0.03952174]
[1673032165966,3.44544055,16868.0,16867.0,0.03952174]
[1673032166208,3.14574177,16868.0,16867.0,0.03952174]
[1673032167226,3.14574177,16868.0,16867.0,0.00383156]
[1673032167698,3.44574177,16868.0,16867.0,0.00383156]
[1673032176303,3.44574177,16868.0,16867.0,0.03908246]
[1673032177508,3.44574177,16868.0,16867.0,0.038973]
[1673032178751,2.56932371,16868.0,16867.0,0.038973]
[1673032179009,2.56932371,16868.0,16867.0,0.0037221]
[1673032179257,3.44536463,16868.0,16867.0,0.0037221]
[1673032179522,3.44526039,16868.0,16867.0,0.0037221]
[1673032181061,3.44495917,16868.0,16867.0,0.0037221]
[1673032181353,3.14495917,16868.0,16867.0,0.0037221]
[1673032182101,3.14495917,16868.0,16867.0,0.038973]
[1673032182364,3.44495917,16868.0,16867.0,0.038973]
[1673032184646,3.44526039,16868.0,16867.0,0.038973]
[1673032187192,3.44526039,16868.0,16867.0,0.0037221]
[1673032187437,3.14875039,16868.0,16867.0,0.0037221]
[1673032187935,3.44526039,16868.0,16867.0,0.0037221]
[1673032189157,3.02456492,16868.0,16867.0,0.03852765]
[1673032189412,1.852014,16868.0,16867.0,0.03852765]
[1673032190185,1.852014,16868.0,16867.0,0.25194296]
[1673032190696,1.852014,16868.0,16867.0,0.86158896]
[1673032190945,1.852014,16868.0,16867.0,0.12331296]
[1673032191220,1.852014,16868.0,16867.0,0.15811851]
[1673032191545,1.85231522,16868.0,16867.0,0.15805383]
[1673032191737,2.14874522,16868.0,16867.0,0.03852765]
[1673032193047,2.148444,16868.0,16867.0,0.03852765]
[1673032193529,2.14874522,16868.0,16867.0,0.03852765]
[1673032194070,2.148444,16868.0,16867.0,0.03852765]
[1673032194548,2.14874522,16868.0,16867.0,0.03852765]
[1673032195047,2.148444,16868.0,16867.0,0.03852765]
[1673032195540,2.14874522,16868.0,16867.0,0.03852765]
[1673032197343,2.148444,16868.0,16867.0,0.03852765]
[1673032197885,2.14874522,16868.0,16867.0,0.03852765]
[1673032198121,2.148444,16868.0,16867.0,0.03852765]
[1673032199422,2.148434,16868.0,16867.0,0.03852765]
[1673032199705,2.148434,16868.0,16867.0,0.17565383]
[1673032199964,1.852014,16868.0,16867.0,0.17565383]
[1673032200518,1.852014,16868.0,16867.0,1.30050099]
[1673032200519,2.45205549,16868.0,16867.0,1.30050099]
[1673032200841,1.85921749,16868.0,16867.0,1.33937481]
[1673032201094,1.259176,16868.0,16867.0,1.94908549]
[1673032201614,1.85921749,16868.0,16867.0,1.33943949]
[1673032202238,1.85921749,16868.0,16867.0,1.94908549]
[1673032202488,1.85921749,16868.0,16867.0,2.16147588]
[1673032203008,1.259176,16868.0,16867.0,2.16147588]
[1673032203326,1.259176,16868.0,16867.0,1.55182988]
[1673032204109,1.259176,16868.0,16867.0,1.51702433]
[1673032204923,1.259176,16868.0,16867.0,2.12667033]
[1673032205177,1.259176,16868.0,16867.0,1.54659724]
[1673032205427,1.555616,16868.0,16867.0,0.4216854]
[1673032205974,1.555616,16868.0,16867.0,0.20917685]
[1673032206486,1.555616,16868.0,16867.0,0.20930006]
[1673032206718,1.555616,16868.0,16867.0,0.20917685]
[1673032207577,1.555616,16868.0,16867.0,0.20930006]
[1673032208966,1.55591722,16868.0,16867.0,0.20917685]
[1673032209213,1.555616,16868.0,16867.0,0.20917685]
[1673032210007,1.55592722,16868.0,16867.0,0.20917685]
[1673032210573,2.15596871,16868.0,16867.0,0.20917685]
[1673032211551,2.15596871,16868.0,16867.0,0.03317685]
[1673032212613,2.15566749,16868.0,16867.0,0.03330006]
[1673032212869,2.15566749,16868.0,16867.0,0.03317685]
[1673032213133,1.555626,16868.0,16867.0,0.03317685]
[1673032214173,1.555626,16868.0,16867.0,0.00360394]
[1673032215969,1.555616,16868.0,16867.0,0.03317685]
[1673032216226,1.55591722,16868.0,16867.0,0.03317685]
[1673032217965,1.555616,16868.0,16867.0,0.03330006]
[1673032218193,2.15565749,16868.0,16867.0,0.03317685]
[1673032219077,2.15595871,16868.0,16867.0,0.03317685]
[1673032219581,2.15565749,16868.0,16867.0,0.03330006]
[1673032219837,2.15565749,16868.0,16867.0,0.20917685]
[1673032220093,2.15595871,16868.0,16867.0,0.20917685]
[1673032220578,2.15565749,16868.0,16867.0,0.20917685]
[1673032221107,2.15595871,16868.0,16867.0,0.20917685]
[1673032222364,2.15565749,16868.0,16867.0,0.20917685]
[1673032222872,2.15566749,16868.0,16867.0,0.20917685]
[1673032223383,2.15596871,16868.0,16867.0,0.20917685]
[1673032224272,2.15566749,16868.0,16867.0,0.20917685]
[1673032226059,2.15566749,16868.0,16867.0,0.20907911]
[1673032227078,2.15566749,16868.0,16867.0,0.20914395]
[1673032227342,2.15566749,16868.0,16867.0,0.20907911]
[1673032228399,2.15566749,16868.0,16867.0,0.20914395]
[1673032228935,2.15566749,16868.0,16867.0,0.20907911]
[1673032229541,2.15566749,16868.0,16867.0,0.20914395]
[1673032229792,2.15566749,16868.0,16867.0,0.20907911]
[1673032230966,2.15565749,16868.0,16867.0,0.20914395]
[1673032231212,2.15565749,16868.0,16867.0,0.20907911]
[1673032232246,2.15595871,16868.0,16867.0,0.20907911]
[1673032232535,2.15565749,16868.0,16867.0,0.20907911]
[1673032236887,2.15565749,16868.0,16867.0,0.20914395]
[1673032237108,2.15565749,16868.0,16867.0,0.20907911]
[1673032238089,2.15595871,16868.0,16867.0,0.20907911]
[1673032238529,2.15565749,16868.0,16867.0,0.20914395]
[1673032239792,2.15565749,16868.0,16867.0,0.20907911]
[1673032241489,2.15595871,16868.0,16867.0,0.20907911]
[1673032244222,2.15565749,16868.0,16867.0,0.20914395]
[1673032244476,2.15565749,16868.0,16867.0,0.20907911]
[1673032244735,2.15565749,16868.0,16867.0,0.10907911]
[1673032245996,1.555616,16868.0,16867.0,0.10907911]
[1673032246502,1.55591722,16868.0,16867.0,0.10907911]
[1673032246758,1.555616,16868.0,16867.0,0.10914395]
[1673032247009,1.555616,16868.0,16867.0,0.10907911]
[1673032247785,1.55591722,16868.0,16867.0,0.10907911]
[1673032248727,1.25947722,16868.0,16867.0,0.10907911]
[1673032248980,1.55593722,16868.0,16867.0,0.10907911]
[1673032249246,1.555636,16868.0,16867.0,0.10907911]
[1673032250031,1.555626,16868.0,16867.0,0.10907911]
[1673032250547,1.259176,16868.0,16867.0,0.10907911]
[1673032251083,1.259176,16868.0,16867.0,0.11037612]
[1673032251313,1.259176,16868.0,16867.0,0.10907911]
[1673032252609,1.25947722,16868.0,16867.0,0.10907911]
[1673032255193,1.259176,16868.0,16867.0,0.10907911]
[1673032255708,1.25947722,16868.0,16867.0,0.10907911]
[1673032258218,1.259176,16868.0,16867.0,0.10907911]
[1673032261403,1.259176,16868.0,16867.0,0.10914395]
[1673032261658,1.259176,16868.0,16867.0,0.10907911]
[1673032262647,1.25947722,16868.0,16867.0,0.10907911]
[1673032263380,1.259176,16868.0,16867.0,0.10907911]
[1673032263922,1.25947722,16868.0,16867.0,0.10907911]
[1673032264881,1.259176,16868.0,16867.0,0.10914395]
[1673032265145,1.259176,16868.0,16867.0,0.10907911]
[1673032265399,1.25947722,16868.0,16867.0,0.10907911]
[1673032266151,1.259176,16868.0,16867.0,0.10907911]
[1673032266406,1.25947722,16868.0,16867.0,0.10907911]
[1673032266666,1.259176,16868.0,16867.0,0.10907911]
[1673032267685,1.25947722,16868.0,16867.0,0.10907911]
[1673032267948,1.259176,16868.0,16867.0,0.10900956]
[1673032268461,1.25947722,16868.0,16867.0,0.10900956]
[1673032269452,1.259176,16868.0,16867.0,0.10900956]
[1673032273491,1.25947722,16868.0,16867.0,0.10900956]
[1673032275758,1.259176,16868.0,16867.0,0.10900956]
[1673032276036,1.25947722,16868.0,16867.0,0.10900956]
[1673032277591,1.85231522,16868.0,16867.0,0.10900956]
[1673032278048,1.85231522,16868.0,16867.0,0.13880626]
[1673032278303,1.852014,16868.0,16867.0,0.13880626]
[1673032278542,1.259176,16868.0,16867.0,0.13880626]
[1673032281844,1.25947722,16868.0,16867.0,0.13880626]
[1673032282099,1.25947722,16868.0,16867.0,0.1388711]
[1673032282100,1.259176,16868.0,16867.0,0.1388711]
[1673032282354,1.259176,16868.0,16867.0,0.13880626]
[1673032283105,1.25947722,16868.0,16867.0,0.13880626]
[1673032283362,1.259176,16868.0,16867.0,0.13880626]
[1673032283624,1.85994889,16868.0,16867.0,0.13880626]
[1673032283933,1.259176,16868.0,16867.0,0.13880626]
[1673032284198,1.25947722,16868.0,16867.0,0.13880626]
[1673032285230,1.25947722,16868.0,16867.0,0.10900956]
[1673032285486,1.259176,16868.0,16867.0,0.1090744]
[1673032285746,1.259176,16868.0,16867.0,0.10900956]
[1673032285997,1.259176,16868.0,16867.0,0.13880626]
[1673032286497,1.25947722,16868.0,16867.0,0.13880626]
[1673032287522,2.15231522,16868.0,16867.0,0.13880626]
[1673032288051,1.85231522,16868.0,16867.0,0.13880626]
[1673032288551,1.259176,16868.0,16867.0,0.1388711]
[1673032288803,1.25947722,16868.0,16867.0,0.22693727]
[1673032289072,1.85231522,16868.0,16867.0,0.13880626]
[1673032291140,1.85231522,16868.0,16867.0,0.13870964]
[1673032291385,1.852014,16868.0,16867.0,0.13870964]
[1673032291664,1.852014,16868.0,16867.0,0.0297967]
[1673032293157,2.052014,16868.0,16867.0,0.0297967]
[1673032294158,1.852014,16868.0,16867.0,0.0297967]
[1673032294938,1.85231522,16868.0,16867.0,0.0297967]
[1673032298830,1.852014,16868.0,16867.0,0.0297967]
[1673032302676,1.85231522,16868.0,16867.0,0.0297967]
[1673032303693,1.85231522,16868.0,16867.0,0.02990914]
[1673032303943,1.85231522,16868.0,16867.0,0.0297967]
[1673032304606,2.15231522,16868.0,16867.0,0.0297967]
[1673032305079,1.85231522,16868.0,16866.0,0.176]
[1673032306118,1.78731522,16868.0,16867.0,0.03522238]
[1673032306583,2.22793433,16868.0,16867.0,0.03522238]
[1673032306836,2.52793433,16868.0,16867.0,0.03522238]
[1673032307380,2.16231522,16868.0,16867.0,0.03522238]
[1673032307621,2.08731522,16868.0,16867.0,0.03522238]
[1673032307858,2.16231522,16868.0,16867.0,0.04522238]
[1673032308101,2.16231522,16868.0,16867.0,0.01]
[1673032308596,3.03835614,16868.0,16867.0,0.01]
[1673032309823,2.16231522,16868.0,16867.0,0.01]
[1673032311038,1.86231522,16868.0,16867.0,0.01]
[1673032313414,1.86231522,16868.0,16867.0,0.009925]
[1673032313652,2.26231522,16868.0,16867.0,0.009925]
[1673032314111,2.26231522,16868.0,16867.0,0.04513484]
[1673032316404,1.86231522,16868.0,16867.0,0.04513484]
[1673032316653,1.862014,16868.0,16867.0,0.04513484]
[1673032319463,1.862014,16868.0,16867.0,0.74776911]
[1673032319788,1.86951143,16868.0,16867.0,0.87066939]
[1673032320489,1.86951143,16868.0,16867.0,1.48031539]
[1673032320756,1.86951143,16868.0,16867.0,0.77774123]
[1673032321010,1.86951143,16868.0,16867.0,2.00726461]
[1673032321011,0.075,16868.0,16867.0,2.00726461]
[1673032322032,0.075,16868.0,16867.0,1.88436433]
[1673032322560,0.075,16868.0,16867.0,1.40313067]
[1673032322803,0.075,16868.0,16867.0,1.88436433]
[1673032324345,0.075,16868.0,16867.0,1.40307056]
[1673032326198,0.07530122,16868.0,16867.0,0.83078084]
[1673032326385,1.27697465,16868.0,16867.0,0.04513484]
[1673032327142,1.27667343,16868.0,16867.0,0.04513484]
[1673032327661,1.86951143,16868.0,16867.0,0.04513484]
[1673032327901,1.86981265,16868.0,16867.0,0.04513484]
[1673032328150,1.86951143,16868.0,16867.0,0.009925]
[1673032328938,1.86981265,16868.0,16867.0,0.009925]
[1673032329189,1.86951143,16868.0,16867.0,0.009925]
[1673032331244,1.86951143,16868.0,16867.0,0.04012019]
[1673032332018,1.269176,16868.0,16867.0,0.04012019]
[1673032332276,1.269176,16868.0,16867.0,0.009925]
[1673032332606,1.269176,16868.0,16867.0,0.00998512]
[1673032333044,1.269176,16868.0,16867.0,0.009925]
[1673032335274,1.269176,16868.0,16867.0,0.138555]
[1673032335527,0.676338,16868.0,16867.0,0.13861512]
[1673032335777,1.20943294,16868.0,16867.0,0.00998512]
[1673032336042,1.20943389,16868.0,16867.0,0.13861512]
[1673032336294,1.20943389,16868.0,16867.0,0.16880494]
[1673032336535,1.20943389,16868.0,16867.0,0.04011482]
[1673032337540,0.676338,16868.0,16867.0,0.04011482]
[1673032337836,1.26947722,16868.0,16867.0,0.04011482]
[1673032338083,0.67663922,16868.0,16867.0,0.009925]
[1673032338327,0.67663922,16868.0,16867.0,0.0098193]
[1673032339070,1.26947722,16868.0,16867.0,0.0098193]
[1673032339826,0.676338,16868.0,16867.0,0.0098193]
[1673032340291,0.676338,16868.0,16867.0,0.04000912]
[1673032340521,1.20935128,16868.0,16867.0,0.04000912]
[1673032341284,1.2096525,16868.0,16867.0,0.04000912]
[1673032341539,1.20935128,16868.0,16867.0,0.21480912]
[1673032342281,1.2096525,16868.0,16867.0,0.21480912]
[1673032342534,1.20935128,16868.0,16867.0,0.21480912]
[1673032343046,1.20935128,16868.0,16867.0,0.1846193]
[1673032344874,1.20935128,16868.0,16867.0,0.80723097]
[1673032345221,1.20935128,16868.0,16867.0,0.83742079]
[1673032345668,1.20935128,16868.0,16867.0,1.31865445]
[1673032345921,0.075,16868.0,16867.0,2.07764589]
[1673032346969,0.60801328,16868.0,16867.0,2.07764589]
[1673032347238,1.12584628,16869.0,16867.0,2.06782659]
[1673032347496,0.069,16868.0,16867.0,1.29338059]
[1673032347771,1.12584628,16869.0,16867.0,1.45938059]